Cogmind - Beta 13 @@@ ROGUE MODE // 2024.04.21 @ 21:15:11 Player: Bace Troncons Result: Destroyed by L-41 Fighter with Axe Performance ------------- Evolutions (3) 1500 Regions Visited (7) 1400 Robots Destroyed (48) 240 Value Destroyed (1501) 1501 Prototype IDs (23) 460 Alien Tech Used (0) 0 Bonus (465) 465 TOTAL SCORE: 5566 Bonus ------- Follower Combat Kills 165 Aligned with FarCom 300 Cogmind --------- Core Integrity 0/700 Matter 290/300 Energy 94/100 System Corruption 0% Temperature Cool (0) Movement Core (400) Ox7 Location -7/Lower Caves Parts ------- > --- POWER (1) -------- (None) > --- PROPULSION (4) --- (None) > --- UTILITY (6) ------ Large Storage Unit Improved Signal Interpreter Core Analyzer Armor Integrity Analyzer Hacking Suite Corruption Screen > --- WEAPON (2) ------- Great Axe > --- INVENTORY (15) --- Light Nuclear Core Armored Treads Xenon Bombardment Thruster Advanced Weight Redist. System Advanced Targeting Computer Weapon Cycler Improved Medium Armor Plating Peak State ------------ > --- POWER ------------ Light Nuclear Core > --- PROPULSION ------- Armored Treads Gravmag System Gravmag System Gravmag System > --- UTILITY ---------- Large Storage Unit Core Analyzer Armor Integrity Analyzer Weapon Cycler Hacking Suite Corruption Screen > --- WEAPON ----------- Longsword +1 > --- INVENTORY -------- Carbon-fiber Leg Xenon Bombardment Thruster Improved Heat Sink Sensor Array Assault Rifle Flail Flail [Rating: 47] Favorites ----------- Power Ion Engine Engine Ion Engine Power Core Light Nuclear Core Propulsion Light Treads Treads Light Treads Leg Aluminum Leg Hover Unit Gravmag System Utility Large Storage Unit Device Weapon Cycler Storage Large Storage Unit Processor Salvage Targeting Computer Hackware Hacking Suite Weapon Assault Rifle Ballistic Gun Assault Rifle Ballistic Cannon Heavy Assault Cannon Launcher Grenade Launcher Impact Weapon Flail Slashing Weapon Longsword +1 Build | -11 -10 -10 -10 -9 -8 -7 -7 ------- Run | Yrd Mat Min Exi Min Mat Fac Low Slots Evolved 6 | . . . . . 4 2 . Power . | . . . . . . . . Propulsion 2 | . . . . . 1 1 . Utility 4 | . . . . . 3 1 . Weapon . | . . . . . . . . Parts Attached 58 | 6 10 3 1 4 12 21 1 Power 10 | 1 1 . . 1 2 5 . Engine 6 | 1 1 . . . 2 2 . Core 4 | . . . . 1 . 3 . Reactor . | . . . . . . . . Propulsion 23 | 2 4 . . 2 6 9 . Treads 16 | 2 4 . . 2 6 2 . Leg 4 | . . . . . . 4 . Wheel . | . . . . . . . . Hover 3 | . . . . . . 3 . Flight . | . . . . . . . . Utility 10 | 1 2 . 1 . 4 2 . Device 1 | . . . . . . 1 . Storage 2 | 1 . . 1 . . . . Processor 6 | . 2 . . . 3 1 . Hackware 1 | . . . . . 1 . . Protection . | . . . . . . . . Artifact . | . . . . . . . . Weapon 15 | 2 3 3 . 1 . 5 1 Energy Gun . | . . . . . . . . Energy Cannon . | . . . . . . . . Ballistic Gun 5 | 2 1 2 . . . . . Ballistic Cannon 2 | . . . . . . 2 . Launcher 1 | . . 1 . . . . . Special Weapon . | . . . . . . . . Impact Weapon 2 | . 2 . . . . . . Slashing Weapon 5 | . . . . 1 . 3 1 Piercing Weapon . | . . . . . . . . Special Melee Weapon . | . . . . . . . . Unidentified Prototypes . | . . . . . . . . Parts Lost 21 | . 1 1 . . 6 9 4 Power 5 | . 1 . . . 1 3 . Propulsion 11 | . . . . . 3 5 3 Utility 1 | . . . . . 1 . . Weapon 4 | . . 1 . . 1 1 1 Highest Loss Streak 6 | . 1 1 . . 6 6 4 To Critical Strikes 1 | . . . . . 1 . . Average Slot Usage (%) 92 | . 98 99 100 100 74 83 81 Engine 9 | . 14 14 14 12 2 3 . Core 2 | . . . . 1 6 3 7 Treads 19 | . 27 28 28 28 23 5 . Leg 2 | . . . . . . 7 . Hover 3 | . . . . . . 10 20 Device 1 | . . . . . . 6 . Storage 11 | . 14 14 14 14 9 7 7 Processor 17 | . 13 14 14 14 14 23 30 Hackware 2 | . . . . . 3 7 7 Ballistic Gun 12 | . 24 16 28 14 6 . . Impact Weapon 1 | . 3 10 . . . . . Slashing Weapon 5 | . . . . 14 9 4 7 Naked Turns . | . . . . . . . . Heaviest Build 43 | 14 14 15 29 31 33 43 28 Greatest Support 84 | 40 40 40 40 40 84 68 27 Greatest Overweight (x) 7 | . . . . . . 4 7 Average Overweight (x) . | . . . . . . . 1 Largest Inventory Capacity 15 | 8 8 8 15 15 15 15 15 Average Capacity 12 | 7 8 8 9 15 15 15 15 Most Carried 15 | 4 8 8 8 12 15 10 8 Average Carried 8 | 2 6 7 7 10 10 8 7 Final Capacity 15 | 8 8 8 15 15 15 15 15 Final Carried 12 | 4 8 7 8 12 8 8 7 Class Distribution -------------------- 66% | Mutant 33% | Scavenger-Mutant Dominant Class ---------------- Mutant | -10/Materials Mutant | -10/Mines Mutant | -10/Exiles Mutant | -9/Mines Mutant | -8/Materials Scavenger-Mutant | -7/Factory Scavenger-Mutant | -7/Lower Caves Resources | -11 -10 -10 -10 -9 -8 -7 -7 ----------- Run | Yrd Mat Min Exi Min Mat Fac Low Matter Collected 1106 | 200 289 48 . 84 110 365 10 Remotely . | . . . . . . . . Salvage Created 1579 | . 440 59 . 144 198 708 30 Parts 86 | . 26 4 . 6 15 35 . Haulers Intercepted 1 | . 1 . . . . . . Recyclers Shooed . | . . . . . . . . Parts Field Recycled . | . . . . . . . . Retrieved Matter . | . . . . . . . . Parts Self-Destructed 9 | . . . . . . . 9 Prevented 3 | . . . . . . . 3 Kills | -11 -10 -10 -10 -9 -8 -7 -7 ------- Run | Yrd Mat Min Exi Min Mat Fac Low Combat Hostiles Destroyed 35 | . 11 2 . 3 4 15 . Melee 14 | . 1 . . 3 4 6 . Guns 10 | . 9 1 . . . . . Cannons 8 | . . . . . . 8 . AOE 2 | . . 1 . . . 1 . Classes Destroyed 13 | . 5 . . 1 2 4 1 Builder 6 | . . . . . . 6 . Hauler 1 | . 1 . . . . . . Recycler 1 | . . . . . . 1 . Operator 3 | . 2 . . . . 1 . Watcher 2 | . 2 . . . . . . Swarmer 7 | . 5 . . . 1 1 . Grunt 21 | . 6 2 . 2 . 11 . Brawler 1 | . . . . 1 . . . Duelist 1 | . . . . . . 1 . Specialist 2 | . . . . . 2 . . Hunter 2 | . . . . . 1 1 . Programmer 1 | . . . . . . 1 . Decomposer 1 | . . . . . . . 1 Best Kill Streak 10 | . 3 2 . 2 2 10 . Combat Bots Only 5 | . 3 2 . 2 2 5 . Max Kills in Single Turn 8 | . 2 1 . 1 1 8 1 Gunslinging 1 | . 1 . . . . . . Exploded 1 | . . 1 . . . 1 . Melee 1 | . 1 . . 1 1 1 . Uniques/NPCs Destroyed . | . . . . . . . . Combat | -11 -10 -10 -10 -9 -8 -7 -7 -------- Run | Yrd Mat Min Exi Min Mat Fac Low Hostile Shots Fired 306 | . 63 7 . 21 53 123 39 Missed 79 | . 11 3 . 9 10 36 10 Damage Taken 4256 | . 571 83 . 136 1304 1663 499 Core 1091 | . 124 . . . 257 423 287 Absorbed by Shields . | . . . . . . . . Regen/Repaired (Parts) 261 | . 130 . . . . 131 . Core Remaining (%) 67 | 100 . . . 50 53 . . Volleys Fired 54 | . 25 4 . . . 25 . Largest 2 | . 2 2 . . . 1 . Hottest 60 | . 40 40 . . . 60 . Shots Fired 80 | . 50 5 . . . 25 . Gun 52 | . 50 2 . . . . . Cannon 25 | . . . . . . 25 . Launcher 3 | . . 3 . . . . . Special . | . . . . . . . . Kinetic 77 | . 50 2 . . . 25 . Thermal . | . . . . . . . . Explosive 3 | . . 3 . . . . . Electromagnetic . | . . . . . . . . Robot Hit Streak 7 | . 6 3 . . . 7 . Robot Miss Streak 3 | . 3 1 . . . 3 . Penetration Max . | . . . . . . . . Secondary Targets 3 | . 3 . . . . . . Max Gunslinging Chain 1 | . 1 . . . . . . Shots Hit Robots 111 | . 41 3 . 11 14 38 4 Core Hits 48 | . 17 4 . 3 6 18 . Critical Kills 1 | . 1 . . . . . . Critical Parts Destroyed 1 | . 1 . . . . . . Critical Strikes 11 | . 2 . . 1 3 5 . Blast 3 | . . . . . . 3 . Smash 2 | . 2 . . . . . . Sever 6 | . . . . 1 3 2 . Melee Attacks 94 | . 14 . . 12 30 33 5 Impact 14 | . 14 . . . . . . Slashing 80 | . . . . 12 30 33 5 Piercing . | . . . . . . . . Sneak Attacks 4 | . 2 . . . . 1 1 Combat Hostiles 1 | . . . . . . 1 . Follow-up Attacks . | . . . . . . . . Damage Inflicted 4507 | . 772 91 . 473 502 2456 213 Guns 404 | . 393 11 . . . . . Cannons 915 | . . . . . . 915 . Explosions 668 | . . 80 . . . 588 . Melee 2520 | . 379 . . 473 502 953 213 Ramming . | . . . . . . . . Kinetic 1319 | . 393 11 . . . 915 . Thermal 588 | . . . . . . 588 . Explosive 80 | . . 80 . . . . . Electromagnetic . | . . . . . . . . Impact 379 | . 379 . . . . . . Slashing 2141 | . . . . 473 502 953 213 Piercing . | . . . . . . . . Highest Corruption . | . . . . . . . . Average Corruption . | . . . . . . . . Corruption Purged . | . . . . . . . . Corruption Blocked 5 | . . . . . 2 3 . Overload Shots . | . . . . . . . . Overflow Damage 636 | . 93 . . 45 . 429 69 Projectiles 28 | . . . . . . 28 . Explosions 388 | . . . . . . 388 . Melee 220 | . 93 . . 45 . 13 69 Knockbacks 6 | . 2 . . . . 4 . Impact 2 | . 2 . . . . . . Kinetic 4 | . . . . . . 4 . Secondary . | . . . . . . . . Self-Inflicted Damage 162 | . . 18 . . . 144 . Shots 3 | . . 1 . . . 2 . Rammed . | . . . . . . . . Targets Rammed . | . . . . . . . . Kicked . | . . . . . . . . Crushed . | . . . . . . . . Highest Temperature 165 | . 20 4 . . 15 165 . Average Temperature 48 | . 11 4 . . 15 56 . Received Heat Transfer 954 | . 216 36 . 72 153 468 9 Siege Activations . | . . . . . . . . Robots Corrupted . | . . . . . . . . Combat Hostiles . | . . . . . . . . Parts Fried 1 | . 1 . . . . . . Impact Corruptions 3 | . 3 . . . . . . Robots Melted . | . . . . . . . . Combat Hostiles . | . . . . . . . . Parts Melted . | . . . . . . . . Heat Transferred 400 | . . . . . . 400 . Parts Sabotaged . | . . . . . . . . Parts Stolen . | . . . . . . . . Parts Stripped . | . . . . . . . . Power Chain Reactions . | . . . . . . . . Alert | -11 -10 -10 -10 -9 -8 -7 -7 ------- Run | Yrd Mat Min Exi Min Mat Fac Low Peak Influence 222 | . 176 60 . 100 91 222 . Initial 7 | . . . . . . 7 . Average 56 | . 67 15 . 35 29 78 . Maximum Alert Level 1 | . . . . . . 1 . Low Security (%) 99 | 100 100 100 . 100 100 99 . Level 1 . | . . . . . . . . Level 2 . | . . . . . . . . Level 3 . | . . . . . . . . Level 4 . | . . . . . . . . Level 5 . | . . . . . . . . High Security . | . . . . . . . . Max Security . | . . . . . . . . Squads Dispatched 10 | . 2 . . 1 3 4 . Investigation 3 | . . . . 1 . 2 . Extermination 2 | . . . . . . 2 . Reinforcement 5 | . 2 . . . 3 . . Assault . | . . . . . . . . Garrison . | . . . . . . . . Intercept . | . . . . . . . . Searches Triggered . | . . . . . . . . Construction Impeded . | . . . . . . . . Haulers Reinforced . | . . . . . . . . Active Scanning Responses . | . . . . . . . . Cargo Convoy Interrupts . | . . . . . . . . Stealth | -11 -10 -10 -10 -9 -8 -7 -7 --------- Run | Yrd Mat Min Exi Min Mat Fac Low Distress Signals 1 | . . . . . 1 . . Communications Jammed . | . . . . . . . . Distress Signals . | . . . . . . . . Times Spotted 72 | . 21 2 . 4 14 20 11 Peak Tracking Total 10 | . 3 2 . 3 9 4 10 Tactical Retreats 6 | . 1 . . 1 2 1 1 Traps | -11 -10 -10 -10 -9 -8 -7 -7 ------- Run | Yrd Mat Min Exi Min Mat Fac Low Traps Triggered 4 | . 2 . . . . 2 . Indirectly . | . . . . . . . . Trap Hack Attempts . | . . . . . . . . Triggered . | . . . . . . . . Disarmed . | . . . . . . . . Reprogrammed . | . . . . . . . . Reused . | . . . . . . . . Traps Extracted . | . . . . . . . . Installed . | . . . . . . . . Triggered 1 | . . . . . . . 1 Machines | -11 -10 -10 -10 -9 -8 -7 -7 ---------- Run | Yrd Mat Min Exi Min Mat Fac Low Machines Disabled 3 | . . . . . . 3 . Max in Single Turn 3 | . . . . . . 3 . Garrison Access 1 | . . . . . . 1 . Machines Repaired . | . . . . . . . . Machines Dismantled . | . . . . . . . . Machines Sabotaged . | . . . . . . . . Overloaded Fab Kills . | . . . . . . . . Hacking | -11 -10 -10 -10 -9 -8 -7 -7 --------- Run | Yrd Mat Min Exi Min Mat Fac Low Machines Accessed 20 | . 9 . 1 1 1 8 . Terminals 11 | . 6 . . . 1 4 . Fabricators 2 | . . . . . . 2 . Repair Stations 2 | . 1 . . . . 1 . Recycling Units 2 | . 2 . . . . . . Scanalyzers . | . . . . . . . . Garrison Access 1 | . . . . . . 1 . Total Hacks 46 | . 27 . 1 1 1 16 . Successful 21 | . 10 . 1 1 . 9 . Failed 25 | . 17 . . . 1 7 . Catastrophic 6 | . 4 . . . 1 1 . Database Lockouts . | . . . . . . . . Manual 11 | . 8 . 1 . 1 1 . Terminals 29 | . 19 . . . 1 9 . Fabricators 4 | . . . . . . 4 . Repair Stations 5 | . 3 . . . . 2 . Recycling Units 5 | . 5 . . . . . . Scanalyzers . | . . . . . . . . Garrison Access 1 | . . . . . . 1 . Terminal Hacks 10 | . 5 . 1 1 . 3 . Part Schematic 2 | . . . . . . 2 . Robot Schematic 1 | . . . . . . 1 . Robot Analysis 2 | . 2 . . . . . . Open Door 1 | . . . . 1 . . . Branch Access Points 1 | . 1 . . . . . . Patrol Status 1 | . 1 . . . . . . Hauler Manifests 1 | . 1 . . . . . . Derelict Proto ID Bank 1 | . . . 1 . . . . Fabricator Hacks 3 | . . . . . . 3 . Network Status 1 | . . . . . . 1 . Load Schematic 1 | . . . . . . 1 . Build 1 | . . . . . . 1 . Repair Station Hacks 4 | . 2 . . . . 2 . Scan Component 2 | . 1 . . . . 1 . Repair 2 | . 1 . . . . 1 . Recycling Unit Hacks 3 | . 3 . . . . . . Process 1 | . 1 . . . . . . Retrieve Components 2 | . 2 . . . . . . Scanalyzer . | . . . . . . . . Garrison Access Hacks 1 | . . . . . . 1 . Seal Access 1 | . . . . . . 1 . Unauthorized Hacks . | . . . . . . . . Terminals . | . . . . . . . . Fabricators . | . . . . . . . . Repair Stations . | . . . . . . . . Recycling Units . | . . . . . . . . Scanalyzers . | . . . . . . . . Garrison Access . | . . . . . . . . Data Cores Recovered 1 | . . . . . . 1 . Used 1 | . . . . . . 1 . Hacking Detections 15 | . 8 . . . 1 6 . Full Trace Events 2 | . . . . . . 2 . Feedback Events . | . . . . . . . . Feedback Blocked . | . . . . . . . . Robot Schematics Acquired 1 | . . . . . . 1 . Robots Built 4 | . . . . . . 4 . Authchips . | . . . . . . . . Time 134 | . . . . . . 134 . Total Robot Build Rating 16 | . . . . . . 16 . Part Schematics Acquired 2 | . . . . . . 2 . Parts Built . | . . . . . . . . Authchips . | . . . . . . . . Time . | . . . . . . . . Total Part Build Rating . | . . . . . . . . Parts Repaired 2 | . 1 . . . . 1 . Time 45 | . 26 . . . . 19 . Parts Recycled . | . . . . . . . . Recycled Matter . | . . . . . . . . Retrieved Matter . | . . . . . . . . Retrieved Components . | . . . . . . . . Parts Scanalyzed . | . . . . . . . . Part Schematics Acquired . | . . . . . . . . Parts Damaged . | . . . . . . . . Bothacking | -11 -10 -10 -10 -9 -8 -7 -7 ------------ Run | Yrd Mat Min Exi Min Mat Fac Low Used RIF Installer . | . . . . . . . . Robots Hacked . | . . . . . . . . Non-combat . | . . . . . . . . Combat . | . . . . . . . . Robot Hacks Applied . | . . . . . . . . Relay Couplers Released . | . . . . . . . . Fabnet Peak Effective % . | . . . . . . . . Robots Rewired . | . . . . . . . . Allies Hacked . | . . . . . . . . Hacks Repelled . | . . . . . . . . Allies | -11 -10 -10 -10 -9 -8 -7 -7 -------- Run | Yrd Mat Min Exi Min Mat Fac Low Total Allies 7 | . . . . . . 7 . Largest Group 4 | . . . . . . 4 4 Highest-Rated Group 93 | . . . . . . 93 48 Highest-Rated Ally 31 | . . . . . . 31 12 Total Orders . | . . . . . . . . Ally Attacks 43 | . . . . . . 26 17 Total Damage 492 | . . . . . . 310 182 Kills 7 | . . . . . . 4 3 Allies Corrupted . | . . . . . . . . Allies Melted . | . . . . . . . . Intel | -11 -10 -10 -10 -9 -8 -7 -7 ------- Run | Yrd Mat Min Exi Min Mat Fac Low Robot Analysis Total 2 | . 2 . . . . . . Derelict Logs Recovered 4 | . . 2 . 1 . . 1 Drone Launches . | . . . . . . . . Drone Recoveries . | . . . . . . . . Exploration | -11 -10 -10 -10 -9 -8 -7 -7 ------------- Run | Yrd Mat Min Exi Min Mat Fac Low Turns Passed 5255 | 89 1401 275 369 975 421 1509 216 Spaces Moved 2863 | 50 743 156 228 431 188 900 167 Core 4 | 3 . . . . . . 1 Treads 1922 | 47 743 156 228 431 188 129 . Legs 300 | . . . . . . 300 . Wheels . | . . . . . . . . Hover 637 | . . . . . . 471 166 Flight . | . . . . . . . . Fastest Speed 50 | 50 160 160 160 160 160 52 112 Average Speed 148 | 153 160 160 160 160 160 131 117 Slowest Speed 400 | 160 160 160 160 160 163 400 400 Overloaded Moves . | . . . . . . . . Propulsion Burnouts . | . . . . . . . . Robots Hopped . | . . . . . . . . Cave-ins Triggered 1 | . . . . . 1 . . Exploration Rate (%) 41 | 4 98 35 61 54 21 19 36 Regions Visited 7 Branch Regions 4 Pre-discovered Areas 2 | . . 2 . . . . . Known Exits Taken 2 | . 1 . . . . 1 . Unknown Exits Taken 5 | 1 . 1 1 1 1 . . Scrap Searched 1 | . . 1 . . . . . Spaces Dug 27 | . 1 . . . 15 11 . Terrain Destroyed 113 | . 1 36 . . 15 61 . Melee 27 | . 1 . . . 15 11 . Projectile 11 | . . . . . . 11 . AOE 75 | . . 36 . . . 39 . Terrain Rammed . | . . . . . . . . Walls Destroyed . | . . . . . . . . Machines Disabled . | . . . . . . . . Actions | -11 -10 -10 -10 -9 -8 -7 -7 --------- Run | Yrd Mat Min Exi Min Mat Fac Low Total 3681 | 59 883 176 233 703 278 1166 183 Wait 558 | . 78 12 3 256 36 163 10 Move 2856 | 49 742 155 227 430 187 899 167 Hop . | . . . . . . . . Pick Up 29 | 4 9 1 1 1 4 9 . Fast Attach 25 | 6 2 . . . 6 11 . Attach 16 | . 2 1 . . 3 9 1 Detach 9 | . 1 . . . . 8 . Swap 17 | . 6 2 1 4 3 1 . Drop 23 | . 4 1 1 . 9 8 . Fire 54 | . 25 4 . . . 25 . Melee 94 | . 14 . . 12 30 33 5 Ram . | . . . . . . . . Kick . | . . . . . . . . Crush . | . . . . . . . . Escape Stasis . | . . . . . . . . Rewire . | . . . . . . . . Trap . | . . . . . . . . Miscellaneous . | . . . . . . . . Route ------- -11/Scrapyard -10/Materials (discovered 5 exits: [*Mat x3] / *Min x2) -10/Mines (discovered 2 exits: [*Mat] / *Exi) -10/Exiles -9/Mines -8/Materials -7/Factory -7/Lower Caves History --------- Turn | Location | Event 26 | -11/Scrapyard | Discovered new exit (range 15) 90 | -11/Scrapyard | Entered Materials 301 | -10/Materials | Build established: Mutant 310 | -10/Materials | Discovered new exit (range 7) 436 | -10/Materials | Discovered new exit (range 9) 665 | -10/Materials | Identified exit to Mines 696 | -10/Materials | Discovered new exit (range 15) 817 | -10/Materials | Repaired Lgt. Treads 927 | -10/Materials | Discovered new exit (range 15) 1491 | -10/Materials | Entered Mines 1726 | -10/Mines | Learned location of Storage (-9) 1734 | -10/Mines | Learned location of Mines (-9) 1736 | -10/Mines | Discovered new exit (range 5) 1758 | -10/Mines | Deemed a non-threat by the Exiles lab entrance 1758 | -10/Mines | Discovered new exit (range 5) 1766 | -10/Mines | Entered Exiles 1805 | -10/Exiles | Met 8R-AWN 1833 | -10/Exiles | Met EX-HEX 1878 | -10/Exiles | Met EX-BIN 1900 | -10/Exiles | Aligned with FarCom system 1902 | -10/Exiles | Given EX-Vault access code 1939 | -10/Exiles | Opened EX-Vault 1948 | -10/Exiles | Found Longsword +1 1983 | -10/Exiles | Warned to stay clear of 0b10 Research branches 2028 | -10/Exiles | Met EX-DEC 2120 | -10/Exiles | Discovered new exit (range 10) 2135 | -10/Exiles | Left Exiles lab with Longsword +1 2135 | -10/Exiles | Entered Mines 2212 | -9/Mines | Learned Materials terminal intel 2456 | -9/Mines | Discovered new exit (range 3) 2970 | -9/Mines | Met a Derelict shopkeep closing up shop 3110 | -9/Mines | Entered Materials 3110 | -8/Materials | Evolved 4 slots: Propulsion x1, Utility x3 3111 | -8/Materials | Loaded intel: 11 terminal locations 3404 | -8/Materials | Crushed by falling debris 3411 | -8/Materials | Discovered new exit (range 14) 3459 | -8/Materials | Lost 6 parts (1p3n1u1w) 3531 | -8/Materials | Entered Factory 3531 | -7/Factory | Evolved 2 slots: Propulsion x1, Utility x1 3734 | -7/Factory | Build established: Scavenger-Mutant 3971 | -7/Factory | Allied Derelicts emerged from ambush trap array 4083 | -7/Factory | Repaired Arm. Treads 4300 | -7/Factory | Core integrity fell below 50% 4303 | -7/Factory | Lost 6 parts (2p3n1w) 4808 | -7/Factory | Fabricated S-27 Virus? 5027 | -7/Factory | Discovered new exit (range 10) 5040 | -7/Factory | Identified exit to Lower Caves 5040 | -7/Factory | Entered Lower Caves 5040 | -7/Lower Caves | Accompanied by 4 allies 5219 | -7/Lower Caves | Learned Factory security intel 5224 | -7/Lower Caves | Attracted the attention of an 0b10 outpost 5248 | -7/Lower Caves | Core integrity fell below 20% 5256 | -7/Lower Caves | Destroyed by L-41 Fighter with Axe Last Messages --------------- 05084_ Lgt. Nuclear Core fries itself beyond repair. 05085_ Acquired 10 matter. 05088_ S-27 Virus destroyed. 05093_ VTOL Module fries itself beyond repair. 05097_ Lgt. Nuclear Core fries itself beyond repair. 05219_ Acquired derelict log, extracted data. Data stored: Factory security intel. 05222_ Gravmag System destroyed. 05224_ Y-64 Sentinel: "DETECTED UNIDENTIFIED DERELICT." 05228_ Y-64 Sentinel: "REQUESTING BACKUP." 05232_ Gravmag System destroyed. 05245_ Destroyed Lgt. Nuclear Core. 05249_ Gravmag System destroyed. 05250_ Lgt. Nuclear Core severed. 05252_ Longsword +1 destroyed. [Achievement: Achiever] Map ----- +----------------------------------------------------+ | ?????????????????????????????????????????????????? | | ?????????????????????????????????????????????????? | | ?????????????????????????????????????????????????? | | ?????????????????????????????????????????????????? | | ?????????????????????????????????????????????????? | | ?????????????????????????????????????????????????? | | ?????????????????????????????????????????????????? | | ?????????????????????????????????????????????????? | | ????????????????????????????????????????????????#? | | ??????????????????????????????????????????????? # | | ??????????????????????????????????????????????? ? | | ?????????????????????????????????????????????? #? | | ?????????????????????????????????????????????? #? | | ?????????????????????????????????######??###? #? | | ????????????????????????????????## ### ## ## | | ????????????????????????????????# ? # | | ???????????????????????????????## ???# | | ?????????????????????????####### #???## | | ????????????????????????## ## #???# ? | | ????????????????????????# l ##### ???? | | ????????????????????????##lb ## #?????? | | ????????????????????????## Y ## #?????? | | ???????????????????????##g s##### #?????? | | ???????????????????????# s##???## ## #####?? | | ???????????????????????# l#?????####### #?? | | ???????????????????????##@ #?# ####### ### | | ????????????????????????# ## | | ????????????????????????# ##% | | ???????????????????????? ###% | | ???????????????????????? *##?# | | ???????????????????????## !%##?# | | ????????????????????????#### % ### | | ???????????????????????????? ### % % | | ???????????????????????????? #?# % | | ???????????????????????????? ### ######## | | ???????????????????????????? ##?# ???????# | | ???????????????????????????? #?# ???????#% | | ????????????????????????????? ## ???????%/! | | ????????????????????????????? #?## ?????? %# | | ???????????????????????????????????##??????# # | | ???????????????????????????????????????????#""?# | | ???????????????????????????????????????????##??# | | ????????????????????????????????????????? # | | ???????????????????????????????????????????####### | | ?????????????????????????????????????????????????# | | ??????????????????????????????????????????????#### | | ?????????????????????????????????????????????# | | ????????????????????????????????????????????# | | ????????????????????????????????????????????# | | ????????????????????????????????????????????# | +----------------------------------------------------+ Best States ------------- Heat Dissipation 34 Energy Generation 16 Energy Capacity 290 Matter Stores 300 Matter Capacity 300 Sight Range 18 Terrain Scan Density 10 Corruption Block 8 Weapon Cycling 15 Evasion (%) 55 Core Analysis 6 Armor Integrity Analysis 30 Recoil Reduction 3 Salvage Targeting 1 Offensive Hacking 10 Item Schematics ----------------- Recoil Nullifier | -7/Factory | Hacked Imp. Transmission Jammer | -7/Factory | Hacked Robot Schematics ------------------ S-27 Virus | -7/Factory | Hacked Fabricated ------------ S-27 Virus | x4 | -7/Factory Alien Tech Used ----------------- None Achievements -------------- Achiever My Command Is Your Wish Challenges ------------ None Game ------ Seed HardenedFactoryMeganuke Manual? 0 Play Time 00:50:03 Cumulative 38.3 hours Start 2024.04.21 @ 20:26:33 End 2024.04.21 @ 21:15:11 Sessions 1 Manual Loads 0 Difficulty Rogue Special Mode None Game No. 61 Rogue 61 Adventurer 0 Explorer 0 Win Type - Total 0 Types 0/0/0/0/0/0/0/0/0 Lore% 22 Gallery% 29 Achievement% 25 Wizard Run 0 Options --------- Layout 1 ASCII 0 Keyboard 1 Movement Numpad Keybinds 0 Fullscreen 1 Font 24/Smallcaps Map View 50x35 Zoom Use 0% Tactical HUD 1 Map Filters NONE Filters NONE Steam 1 RUN: 04aa2012-ac2d-4690-9454-c114a576c62b